fUST/lending_fUST_20250727
["ID","MTS","AMOUNT","RATE_DAILY","PERIOD"]
[375268678,1753608646286,-460.0,0.00019726,2]
[375268679,1753608646295,-151.0,0.00019726,2]
[375268680,1753608646305,-664.27,0.00019726,2]
[375268681,1753608646314,-460.0,0.00019726,2]
[375268682,1753608646323,-151.0,0.00019726,2]
[375268683,1753608646333,-151.0,0.00019726,2]
[375268684,1753608646343,-151.0,0.00019726,2]
[375268685,1753608646352,-460.0,0.00019726,2]
[375268686,1753608646361,-2364.21,0.00019726,2]
[375268687,1753608646371,-943.94,0.00019726,2]
[375268688,1753608646380,-460.0,0.00019726,2]
[375268689,1753608646389,-460.0,0.00019726,2]
[375268690,1753608646398,-460.0,0.00019726,2]
[375268691,1753608646408,-460.0,0.00019726,2]
[375268692,1753608646417,-182.722235,0.00019726,2]
[375268693,1753608646427,-460.0,0.00019726,2]
[375268694,1753608646437,-460.0,0.00019726,2]
[375268695,1753608646446,-182.722235,0.00019726,2]
[375268696,1753608646455,-460.0,0.00019726,2]
[375268697,1753608646465,-643.3,0.00019726,2]
[375268698,1753608646474,-460.0,0.00019726,2]
[375268699,1753608646484,-603.74,0.00019726,2]
[375268700,1753608646493,-460.0,0.00019726,2]
[375268701,1753608646503,-460.0,0.00019726,2]
[375268702,1753608646512,-460.0,0.00019726,2]
[375268703,1753608646522,-460.0,0.00019726,2]
[375268704,1753608646531,-151.0,0.00019726,2]
[375268705,1753608646540,-153.554281,0.00019726,2]
[375268706,1753608646550,-460.0,0.00019726,2]
[375268707,1753608646560,-1130.99,0.00019726,2]
[375268708,1753608646569,-151.0,0.00019726,2]
[375268709,1753608646579,-460.0,0.00019726,2]
[375268710,1753608646588,-460.0,0.00019726,2]
[375268711,1753608646598,-801.01,0.00019726,2]
[375268712,1753608646607,-500.0,0.00019773,2]
[375268713,1753608646617,-3494.95108143,0.00019789,2]
[375268714,1753608646626,-299.031915,0.00019853,2]
[375268715,1753608646636,-942.58323052,0.00019889,2]
[375268716,1753608646645,-151.968557,0.0001999,2]
[375268717,1753608646655,-151.0,0.0001999,2]
[375268718,1753608646665,-151.0,0.0001999,2]
[375268719,1753608646675,-151.0,0.0001999,2]
[375268720,1753608646685,-151.0,0.0001999,2]
[375268721,1753608646695,-201.425766,0.0001999,2]
[375268722,1753608646704,-595.51527271,0.0002,2]
[375268723,1753608646714,-160.37715121,0.0002,2]
[375268724,1753608646723,-151.0,0.0002,2]
[375268725,1753608646733,-507.0,0.0002,2]
[375268726,1753608646742,-265.11712398,0.0002,2]
[375268727,1753608646752,-151.0,0.0002,2]
[375268728,1753608646762,-500.0,0.0002,2]
[375268729,1753608646772,-151.0,0.0002,2]
[375268730,1753608646782,-500.0,0.0002,2]
[375268731,1753608646791,-500.0,0.0002,2]
[375268732,1753608646800,-500.0,0.0002,2]
[375268733,1753608646809,-500.0,0.0002,2]
[375268734,1753608646822,-349.0,0.0002,2]
[375268735,1753608646832,-500.0,0.0002,2]
[375268736,1753608646841,-460.0,0.0002,2]
[375268737,1753608646851,-460.0,0.0002,2]
[375268738,1753608646860,-460.0,0.0002,2]
[375268739,1753608646871,-460.0,0.0002,2]
[375268740,1753608646880,-330.68146207,0.0002,2]
[375268741,1753608646890,-5799.55,0.0002,2]
[375268742,1753608646900,-460.0,0.0002,2]
[375268743,1753608646910,-186.56207954,0.0002,2]
[375268744,1753608646920,-202.54909885,0.0002,2]
[375268745,1753608646930,-460.0,0.0002,2]
[375268746,1753608646939,-460.0,0.0002,2]
[375268747,1753608646949,-460.0,0.0002,2]
[375268748,1753608646959,-1541.98,0.0002,2]
[375268749,1753608646968,-460.0,0.0002,2]
[375268750,1753608646978,-460.0,0.0002,2]
[375268751,1753608646987,-460.0,0.0002,2]
[375268752,1753608646997,-460.0,0.0002,2]
[375268753,1753608647007,-501.6,0.0002,2]
[375268754,1753608647016,-616.93,0.0002,2]
[375268755,1753608647025,-151.0,0.0002,2]
[375268756,1753608647036,-460.0,0.0002,2]
[375268757,1753608647045,-460.0,0.0002,2]
[375268758,1753608647055,-173.647245,0.0002,2]
[375268759,1753608647065,-173.647245,0.0002,2]
[375268760,1753608647074,-345.45235253,0.0002,2]
[375268761,1753608647084,-460.0,0.0002,2]
[375268762,1753608647093,-460.0,0.0002,2]
[375268763,1753608647103,-151.0,0.0002,2]
[375268764,1753608647112,-570.91,0.0002,2]
[375268765,1753608647122,-460.0,0.0002,2]
[375268766,1753608647132,-460.0,0.0002,2]
[375268767,1753608647141,-460.0,0.0002,2]
[375268768,1753608647150,-460.0,0.0002,2]
[375268769,1753608647160,-745.65,0.0002,2]
[375268770,1753608647169,-2101.8,0.0002,2]
[375268771,1753608647179,-460.0,0.0002,2]
[375268772,1753608647188,-857.06,0.0002,2]
[375268773,1753608647198,-515.6,0.0002,2]
[375268774,1753608647207,-460.0,0.0002,2]
[375268775,1753608647217,-460.0,0.0002,2]
[375268776,1753608647226,-460.0,0.0002,2]
[375268777,1753608647236,-151.0,0.0002,2]
[375268778,1753608647245,-976.06,0.0002,2]
[375268779,1753608647256,-372.798185,0.0002,2]
[375268780,1753608647265,-460.0,0.0002,2]
[375268781,1753608647275,-372.798185,0.0002,2]
[375268782,1753608647283,-460.0,0.0002,2]
[375268783,1753608647292,-460.0,0.0002,2]
[375268784,1753608647302,-460.0,0.0002,2]
[375268785,1753608647311,-460.0,0.0002,2]
[375268786,1753608647320,-340.90000032,0.0002,2]
[375268787,1753608647330,-460.0,0.0002,2]
[375268788,1753608647339,-151.0,0.0002,2]
[375268789,1753608647348,-2419.46,0.0002,2]
[375268790,1753608647362,-460.0,0.0002,2]
[375268791,1753608647371,-460.0,0.0002,2]
[375268792,1753608647381,-460.0,0.0002,2]
[375268793,1753608647390,-460.0,0.0002,2]
[375268794,1753608647399,-460.0,0.0002,2]
[375268795,1753608647409,-460.0,0.0002,2]
[375268796,1753608647418,-460.0,0.0002,2]
[375268797,1753608647427,-460.0,0.0002,2]
[375268798,1753608647437,-460.0,0.0002,2]
[375268799,1753608647446,-151.0,0.0002,2]
[375268800,1753608647456,-151.0,0.0002,2]
[375268801,1753608647465,-460.0,0.0002,2]
[375268802,1753608647474,-2581.58,0.0002,2]
[375268803,1753608647484,-460.0,0.0002,2]
[375268804,1753608647494,-460.0,0.0002,2]
[375268805,1753608647503,-460.0,0.0002,2]
[375268806,1753608647512,-958.87,0.0002,2]
[375268807,1753608647522,-733.1,0.0002,2]
[375268808,1753608647531,-460.0,0.0002,2]
[375268809,1753608647541,-193.948359,0.0002,2]
[375268810,1753608647551,-460.0,0.0002,2]
[375268811,1753608647560,-748.61,0.0002,2]
[375268812,1753608647569,-460.0,0.0002,2]
[375268813,1753608647578,-193.948359,0.0002,2]
[375268814,1753608647588,-460.0,0.0002,2]
[375268815,1753608647597,-774.4,0.0002,2]
[375268816,1753608647606,-458.77524967,0.0002,2]
[375268817,1753608647615,-524.54097637,0.0002,2]
[375268818,1753608647625,-460.0,0.0002,2]
[375268819,1753608647634,-151.0,0.0002,2]
[375268820,1753608647644,-460.0,0.0002,2]
[375268821,1753608647654,-151.0,0.0002,2]
[375268822,1753608647663,-151.0,0.0002,2]
[375268823,1753608647672,-460.0,0.0002,2]
[375268824,1753608647681,-393.709126,0.0002,2]
[375268825,1753608647691,-393.709126,0.0002,2]
[375268826,1753608647700,-460.0,0.0002,2]
[375268827,1753608647709,-151.0,0.0002,2]
[375268828,1753608647718,-460.0,0.0002,2]
[375268829,1753608647727,-2220.55,0.0002,2]
[375268830,1753608647736,-460.0,0.0002,2]
[375268831,1753608647745,-460.0,0.0002,2]
[375268832,1753608647755,-460.0,0.0002,2]
[375268833,1753608647764,-460.0,0.0002,2]
[375268834,1753608647774,-645.66,0.0002,2]
[375268835,1753608647783,-2205.59,0.0002,2]
[375268836,1753608647793,-463.8,0.0002,2]
[375268837,1753608647802,-661.06,0.0002,2]
[375268838,1753608647811,-3631.53,0.0002,2]
[375268839,1753608647824,-1789.75,0.0002,2]
[375268840,1753608647834,-976.08,0.0002,2]
[375268841,1753608647843,-460.0,0.0002,2]
[375268842,1753608647852,-1234.22,0.0002,2]
[375268843,1753608647861,-460.0,0.0002,2]
[375268844,1753608647871,-460.0,0.0002,2]
[375268845,1753608647881,-460.0,0.0002,2]
[375268846,1753608647890,-563.02,0.0002,2]
[375268847,1753608647900,-151.0,0.0002,2]
[375268848,1753608647909,-520.23,0.0002,2]
[375268849,1753608647918,-151.0,0.0002,2]
[375268850,1753608647928,-460.0,0.0002,2]
[375268851,1753608647938,-460.0,0.0002,2]
[375268852,1753608647948,-1943.08,0.0002,2]
[375268853,1753608647957,-460.0,0.0002,2]
[375268854,1753608647967,-802.08,0.0002,2]
[375268855,1753608647977,-2921.44,0.0002,2]
[375268856,1753608647987,-178.439143,0.0002,2]
[375268857,1753608647996,-178.439143,0.0002,2]
[375268858,1753608648006,-460.0,0.0002,2]
[375268859,1753608648015,-460.0,0.0002,2]
[375268860,1753608648025,-151.0,0.0002,2]
[375268861,1753608648034,-460.0,0.0002,2]
[375268862,1753608648045,-460.0,0.0002,2]
[375268863,1753608648054,-460.0,0.0002,2]
[375268864,1753608648064,-980.48,0.0002,2]
[375268865,1753608648073,-698.86,0.0002,2]
[375268866,1753608648083,-485.5,0.0002,2]
[375268867,1753608648092,-151.0,0.0002,2]
[375268868,1753608648101,-460.0,0.0002,2]
[375268869,1753608648111,-151.0,0.0002,2]
[375268870,1753608648120,-2017.36,0.0002,2]
[375268871,1753608648130,-273.75030837,0.0002,2]
[375268872,1753608648140,-245.154035,0.0002,2]
[375268873,1753608648149,-460.0,0.0002,2]
[375268874,1753608648160,-665.71,0.0002,2]
[375268875,1753608648170,-460.0,0.0002,2]
[375268876,1753608648179,-460.0,0.0002,2]
[375268877,1753608648290,-460.0,0.0002,2]
[375268878,1753608648300,-460.0,0.0002,2]
[375268879,1753608648310,-460.0,0.0002,2]
[375268880,1753608648319,-765.13,0.0002,2]
[375268881,1753608648329,-151.0,0.0002,2]
[375268882,1753608648339,-5689.3,0.0002,2]
[375268883,1753608648348,-151.0,0.0002,2]
[375268884,1753608648358,-460.0,0.0002,2]
[375268885,1753608648367,-151.0,0.0002,2]
[375268886,1753608648377,-664.27,0.0002,2]
[375268887,1753608648387,-470.94341834,0.0002,2]
[375268888,1753608648396,-151.0,0.0002,2]
[375268889,1753608648405,-151.0,0.0002,2]
[375268890,1753608648414,-151.0,0.0002,2]
[375268891,1753608648424,-460.0,0.0002,2]
[375268892,1753608648434,-2364.21,0.0002,2]
[375268893,1753608648443,-943.94,0.0002,2]
[375268894,1753608648453,-452.98446763,0.0002,2]
[375268895,1753608648604,-7.01553237,0.0002,2]
[375268896,1753608648616,-452.93764178,0.0002,2]
[375268897,1753608648625,-460.0,0.0002,2]
[375268898,1753608648635,-460.0,0.0002,2]
[375268899,1753608648644,-182.722235,0.0002,2]
[375268900,1753608648654,-460.0,0.0002,2]
[375268901,1753608648664,-460.0,0.0002,2]
[375268902,1753608648673,-182.722235,0.0002,2]
[375268903,1753608648683,-460.0,0.0002,2]
[375268904,1753608648692,-643.3,0.0002,2]
[375268905,1753608648703,-467.17609631,0.0002,2]
[375268906,1753608648712,-603.74,0.0002,2]
[375268907,1753608648721,-460.0,0.0002,2]
[375268908,1753608648731,-460.0,0.0002,2]
[375268909,1753608648740,-460.0,0.0002,2]
[375268910,1753608648750,-460.0,0.0002,2]
[375268911,1753608648759,-151.0,0.0002,2]
[375268912,1753608648768,-1130.99,0.0002,2]
[375268913,1753608648778,-460.0,0.0002,2]
[375268914,1753608648788,-151.0,0.0002,2]
[375268915,1753608648797,-460.0,0.0002,2]
[375268916,1753608648807,-460.0,0.0002,2]
[375268917,1753608648821,-801.01,0.0002,2]
[375268918,1753608648830,-504.9755767,0.00020021,2]
[375268919,1753608648840,-519.33640727,0.00020021,2]
[375268920,1753608648849,-486.99160467,0.00020021,2]
[375268921,1753608648859,-752.830874,0.00020027,2]
[375268922,1753608648869,-525.99,0.0002003,2]
[375268923,1753608648879,-150.0,0.00020146,2]
[375268924,1753608648888,-942.58323052,0.00020159,2]
[375268925,1753608648899,-336.235314,0.00020187,2]
[375268926,1753608648909,-151.0,0.000202,4]
[375268927,1753608648919,-152.374892,0.00020247,2]
[375268928,1753608648930,-151.0,0.00020247,2]
[375268929,1753608648940,-151.0,0.00020247,2]
[375268930,1753608648949,-151.0,0.00020247,2]
[375268931,1753608648959,-140552.53629513,0.00020259,2]
[375268932,1753608648982,-337.09243243,0.00019726,2]
[375268933,1753608648991,-1159.41195487,0.00020259,2]
[375268934,1753608649003,-667.58803514,0.00020259,2]
[375268935,1753608649019,-318.9409208,0.00020259,2]
[375268936,1753608649031,-2313.951988,0.00020259,2]
[375268937,1753608649218,-460.0,0.00019178,2]
[375268938,1753608649229,-1696.26,0.00019452,2]
[375268939,1753608649239,-467.62948119,0.00019452,2]
[375268940,1753608649248,-1013.81955659,0.00019726,2]
[375268941,1753608649302,-682.44044341,0.00019726,2]
[375268942,1753608649312,-1314.38996647,0.0002,2]
[375268943,1753608649324,-381.87003353,0.0002,2]
[375268944,1753608649334,-227.65762274,0.00020259,2]
[375268945,1753608649348,-5109.55268503,0.00020259,2]
[375268946,1753608649360,-890.44731497,0.00020259,2]
[375268947,1753608649449,-460.0,0.00019178,2]
[375268948,1753608649459,-1982.09163421,0.00020259,2]
[375268949,1753608649475,-13856.56076637,0.00020259,2]
[375268950,1753608649485,-151.0,0.00020259,2]
[375268951,1753608649495,-230.069666,0.00020259,2]
[375268952,1753608649504,-151.0,0.00020259,2]
[375268953,1753608649514,-151.0,0.00020259,2]
[375268954,1753608649523,-151.0,0.00020259,2]
[375268955,1753608649533,-151.0,0.00020259,2]
[375268956,1753608649543,-173.647245,0.00020259,2]
[375268957,1753608649552,-173.647245,0.00020259,2]
[375268958,1753608649563,-1169.53,0.00020259,2]
[375268959,1753608649573,-178.674,0.00020259,2]
[375268960,1753608649582,-227.052788,0.00020259,2]
[375268961,1753608649592,-1263.61653388,0.00020259,2]
[375268962,1753608649601,-151.0,0.00020259,2]
[375268963,1753608649610,-372.798185,0.00020259,2]
[375268964,1753608649620,-372.798185,0.00020259,2]
[375268965,1753608649629,-151.0,0.00020259,2]
[375268966,1753608649639,-151.0,0.00020259,2]
[375268967,1753608649649,-151.0,0.00020259,2]
[375268968,1753608649659,-193.948359,0.00020259,2]
[375268969,1753608649669,-193.948359,0.00020259,2]
[375268970,1753608649678,-151.0,0.00020259,2]
[375268971,1753608649688,-151.0,0.00020259,2]
[375268972,1753608649699,-393.709126,0.00020259,2]
[375268973,1753608649709,-393.709126,0.00020259,2]
[375268974,1753608649719,-151.0,0.00020259,2]
[375268975,1753608649729,-151.0,0.00020259,2]
[375268976,1753608649738,-151.0,0.00020259,2]
[375268977,1753608649748,-178.439143,0.00020259,2]
[375268978,1753608649758,-178.439143,0.00020259,2]
[375268979,1753608649767,-151.0,0.00020259,2]
[375268980,1753608649777,-151.0,0.00020259,2]
[375268981,1753608649786,-151.0,0.00020259,2]
[375268982,1753608649796,-151.0,0.00020259,2]
[375268983,1753608649806,-151.0,0.00020259,2]
[375268984,1753608649816,-151.0,0.00020259,2]
[375268985,1753608649828,-151.0,0.00020259,2]
[375268986,1753608649838,-151.0,0.00020259,2]
[375268987,1753608649847,-151.0,0.00020259,2]
[375268988,1753608649857,-182.722235,0.00020259,2]
[375268989,1753608649867,-182.722235,0.00020259,2]
[375268990,1753608649877,-151.0,0.00020259,2]
[375268991,1753608649886,-165.077312,0.00020259,2]
[375268992,1753608649896,-500.0,0.00020273,2]
[375268993,1753608649905,-500.0,0.00020273,2]
[375268994,1753608649915,-500.0,0.00020273,2]
[375268995,1753608649924,-500.0,0.00020273,2]
[375268996,1753608649934,-500.0,0.00020273,2]
[375268997,1753608649944,-500.72271446,0.00020273,2]
[375268998,1753608649955,-500.0,0.00020273,2]
[375268999,1753608649965,-500.90106149,0.00020273,2]
[375269000,1753608649975,-500.0,0.00020273,2]
[375269001,1753608649985,-1000.0,0.00020273,2]
[375269002,1753608649995,-500.0,0.00020273,2]
[375269003,1753608650006,-503.27267999,0.00020273,2]
[375269004,1753608650015,-502.82087686,0.00020273,2]
[375269005,1753608650024,-500.0,0.00020273,2]
[375269006,1753608650034,-500.0,0.00020273,2]
[375269007,1753608650044,-500.0,0.00020273,2]
[375269008,1753608650053,-500.0,0.00020273,2]
[375269009,1753608650062,-501.661043,0.00020273,2]
[375269010,1753608650072,-501.83090431,0.00020273,2]
[375269011,1753608650081,-617.08646584,0.00020273,2]
[375269012,1753608650091,-460.0,0.00020273,2]
[375269013,1753608650100,-460.0,0.00020273,2]
[375269014,1753608650109,-460.0,0.00020273,2]
[375269015,1753608650119,-460.0,0.00020273,2]
[375269016,1753608650129,-460.0,0.00020273,2]
[375269017,1753608650139,-460.0,0.00020273,2]
[375269018,1753608650148,-5799.55,0.00020273,2]
[375269019,1753608650158,-460.0,0.00020273,2]
[375269020,1753608650167,-460.0,0.00020273,2]
[375269021,1753608650177,-460.0,0.00020273,2]
[375269022,1753608650188,-460.0,0.00020273,2]
[375269023,1753608650198,-1541.98,0.00020273,2]
[375269024,1753608650208,-164.6,0.00020273,2]
[375269025,1753608650219,-327.9035012,0.00020273,2]
[375269026,1753608650228,-551.85296888,0.00020273,2]
[375269027,1753608650238,-460.0,0.00020273,2]
[375269028,1753608650247,-460.0,0.00020273,2]
[375269029,1753608650256,-501.6,0.00020273,2]
[375269030,1753608650266,-616.93,0.00020273,2]
[375269031,1753608650275,-152.444124,0.00020273,2]
[375269032,1753608650284,-460.0,0.00020273,2]
[375269033,1753608650294,-460.0,0.00020273,2]
[375269034,1753608650304,-460.0,0.00020273,2]
[375269035,1753608650313,-460.0,0.00020273,2]
[375269036,1753608650322,-326.90425023,0.00020273,2]
[375269037,1753608650332,-460.0,0.00020273,2]
[375269038,1753608650342,-460.0,0.00020273,2]
[375269039,1753608650352,-745.65,0.00020273,2]
[375269040,1753608650361,-2101.8,0.00020273,2]
[375269041,1753608650370,-460.0,0.00020273,2]
[375269042,1753608650380,-857.06,0.00020273,2]
[375269043,1753608650390,-515.6,0.00020273,2]
[375269044,1753608650399,-460.0,0.00020273,2]
[375269045,1753608650409,-460.0,0.00020273,2]
[375269046,1753608650418,-460.0,0.00020273,2]
[375269047,1753608650428,-976.06,0.00020273,2]
[375269048,1753608650438,-460.0,0.00020273,2]
[375269049,1753608650447,-466.45989845,0.00020273,2]
[375269050,1753608650457,-460.0,0.00020273,2]
[375269051,1753608650467,-460.0,0.00020273,2]
[375269052,1753608650477,-460.0,0.00020273,2]
[375269053,1753608650589,-460.0,0.00020273,2]
[375269054,1753608650599,-2419.46,0.00020273,2]
[375269055,1753608650608,-460.0,0.00020273,2]
[375269056,1753608650617,-460.0,0.00020273,2]
[375269057,1753608650627,-460.0,0.00020273,2]
[375269058,1753608650636,-460.0,0.00020273,2]
[375269059,1753608650646,-460.0,0.00020273,2]
[375269060,1753608650655,-460.0,0.00020273,2]
[375269061,1753608650664,-460.0,0.00020273,2]
[375269062,1753608650674,-460.0,0.00020273,2]
[375269063,1753608650684,-460.0,0.00020273,2]
[375269064,1753608650694,-460.0,0.00020273,2]
[375269065,1753608650703,-2581.58,0.00020273,2]
[375269066,1753608650713,-460.0,0.00020273,2]
[375269067,1753608650722,-460.0,0.00020273,2]
[375269068,1753608650732,-460.0,0.00020273,2]
[375269069,1753608650742,-958.87,0.00020273,2]
[375269070,1753608650752,-733.1,0.00020273,2]
[375269071,1753608650761,-460.0,0.00020273,2]
[375269072,1753608650771,-748.61,0.00020273,2]
[375269073,1753608650780,-460.0,0.00020273,2]
[375269074,1753608650791,-460.0,0.00020273,2]
[375269075,1753608650802,-774.4,0.00020273,2]
[375269076,1753608650811,-460.0,0.00020273,2]
[375269077,1753608650828,-460.0,0.00020273,2]
[375269078,1753608650838,-460.0,0.00020273,2]
[375269079,1753608650847,-460.0,0.00020273,2]
[375269080,1753608650857,-2220.55,0.00020273,2]
[375269081,1753608650867,-266.9551159,0.00020273,2]
[375269082,1753608650876,-460.0,0.00020273,2]
[375269083,1753608650886,-460.0,0.00020273,2]
[375269084,1753608650897,-460.0,0.00020273,2]
[375269085,1753608650906,-645.66,0.00020273,2]
[375269086,1753608650916,-2205.59,0.00020273,2]
[375269087,1753608650925,-463.8,0.00020273,2]
[375269088,1753608650935,-661.06,0.00020273,2]
[375269089,1753608650944,-3631.53,0.00020273,2]
[375269090,1753608650954,-1789.75,0.00020273,2]
[375269091,1753608650963,-976.08,0.00020273,2]
[375269092,1753608650974,-460.0,0.00020273,2]
[375269093,1753608650984,-1234.22,0.00020273,2]
[375269094,1753608650993,-460.0,0.00020273,2]
[375269095,1753608651003,-460.0,0.00020273,2]
[375269096,1753608651014,-460.0,0.00020273,2]
[375269097,1753608651023,-520.23,0.00020273,2]
[375269098,1753608651033,-460.0,0.00020273,2]
[375269099,1753608651043,-482.29803658,0.00020273,2]
[375269100,1753608651053,-460.0,0.00020273,2]
[375269101,1753608651062,-802.08,0.00020273,2]
[375269102,1753608651072,-2921.44,0.00020273,2]
[375269103,1753608651081,-460.0,0.00020273,2]
[375269104,1753608651091,-460.0,0.00020273,2]
[375269105,1753608651100,-460.0,0.00020273,2]
[375269106,1753608651109,-460.0,0.00020273,2]
[375269107,1753608651119,-698.86,0.00020273,2]
[375269108,1753608651129,-485.5,0.00020273,2]
[375269109,1753608651138,-2017.36,0.00020273,2]
[375269110,1753608651148,-460.0,0.00020273,2]
[375269111,1753608651158,-665.71,0.00020273,2]
[375269112,1753608651168,-460.0,0.00020273,2]
[375269113,1753608651177,-460.0,0.00020273,2]
[375269114,1753608651188,-460.0,0.00020273,2]
[375269115,1753608651198,-460.0,0.00020273,2]
[375269116,1753608651208,-460.0,0.00020273,2]
[375269117,1753608651217,-765.13,0.00020273,2]
[375269118,1753608651227,-5689.3,0.00020273,2]
[375269119,1753608651236,-460.0,0.00020273,2]
[375269120,1753608651245,-664.27,0.00020273,2]
[375269121,1753608651254,-460.0,0.00020273,2]
[375269122,1753608651264,-2364.21,0.00020273,2]
[375269123,1753608651273,-943.94,0.00020273,2]
[375269124,1753608651282,-460.0,0.00020273,2]
[375269125,1753608651292,-460.0,0.00020273,2]
[375269126,1753608651301,-460.0,0.00020273,2]
[375269127,1753608651310,-460.0,0.00020273,2]
[375269128,1753608651320,-643.3,0.00020273,2]
[375269129,1753608651329,-603.74,0.00020273,2]
[375269130,1753608651338,-460.0,0.00020273,2]
[375269131,1753608651347,-460.0,0.00020273,2]
[375269132,1753608651357,-460.0,0.00020273,2]
[375269133,1753608651366,-460.0,0.00020273,2]
[375269134,1753608651375,-1130.99,0.00020273,2]
[375269135,1753608651385,-460.0,0.00020273,2]
[375269136,1753608651395,-460.0,0.00020273,2]
[375269137,1753608651404,-801.01,0.00020273,2]
[375269138,1753608651414,-460.0,0.00020273,2]
[375269139,1753608651423,-1696.26,0.00020273,2]
[375269140,1753608651433,-151.0,0.00020274,2]
[375269141,1753608651442,-507.0,0.00020274,2]
[375269142,1753608651452,-189.76662497,0.00020274,2]
[375269143,1753608651461,-341.64785306,0.00020274,2]
[375269144,1753608651471,-151.0,0.00020274,2]
[375269145,1753608651480,-500.0,0.00020274,2]
[375269146,1753608651489,-500.0,0.00020274,2]
[375269147,1753608651498,-350.62723539,0.00020274,2]
[375269148,1753608651508,-302.0,0.00020274,2]
[375269149,1753608651517,-160.0,0.00020305,2]
[375269150,1753608651526,-152.942697,0.00020314,2]
[375269151,1753608651535,-173.647245,0.00020314,2]
[375269152,1753608651545,-173.647245,0.00020314,2]
[375269153,1753608651554,-151.0,0.00020314,2]
[375269154,1753608651563,-177.19362,0.00020314,2]
[375269155,1753608651573,-178.439143,0.00020314,2]
[375269156,1753608651582,-178.439143,0.00020314,2]
[375269157,1753608651592,-151.0,0.00020314,2]
[375269158,1753608651601,-151.0,0.00020314,2]
[375269159,1753608651611,-500.0,0.00020321,2]
[375269160,1753608651620,-151.0,0.00020321,2]
[375269161,1753608651630,-219.572368,0.00020321,2]
[375269162,1753608651639,-153.915522,0.00020321,2]
[375269163,1753608651649,-193.948359,0.00020321,2]
[375269164,1753608651658,-193.948359,0.00020321,2]
[375269165,1753608651667,-151.0,0.00020321,2]
[375269166,1753608651677,-151.0,0.00020321,2]
[375269167,1753608651687,-393.709126,0.00020321,2]
[375269168,1753608651698,-393.709126,0.00020321,2]
[375269169,1753608651707,-151.0,0.00020321,2]
[375269170,1753608651716,-151.0,0.00020321,2]
[375269171,1753608651726,-151.0,0.00020321,2]
[375269172,1753608651735,-151.0,0.00020321,2]
[375269173,1753608651745,-151.0,0.00020321,2]
[375269174,1753608651755,-182.722235,0.00020321,2]
[375269175,1753608651765,-182.722235,0.00020321,2]
[375269176,1753608651774,-151.0,0.00020321,2]
[375269177,1753608651783,-749.77923604,0.00020337,2]